bitfinex-derivatives/quotes_ETHF0:USTF0_20250905
["timestamp","ask_amount","ask_price","bid_price","bid_amount"]
[1757073861810,0.4938,4419.3,4419.2,0.79968]
[1757073862409,0.6972,4419.3,4419.2,0.3924]
[1757073862813,0.6972,4419.3,4419.2,0.6814]
[1757073869818,0.6972,4419.3,4419.2,1.08868]
[1757073871719,0.4938,4419.3,4419.2,1.08868]
[1757073872322,0.229,4419.4,4419.3,0.40727]
[1757073872515,31.229,4420.9,4420.2,0.40718]
[1757073872516,0.2958,4420.3,4420.2,0.40718]
[1757073872714,0.4938,4420.3,4420.2,1.08858]
[1757073873115,0.6972,4420.3,4420.2,1.08858]
[1757073875815,34.4368,4420.9,4420.2,0.6814]
[1757073876022,3.2078,4420.9,4420.8,0.40714]
[1757073876221,3.6092,4420.9,4420.8,1.08854]
[1757073876422,3.905,4420.9,4420.8,1.08854]
[1757073879831,3.905,4420.9,4420.8,0.79954]
[1757073880135,3.905,4420.9,4420.8,0.1996]
[1757073880527,0.2958,4420.8,4419.9,40.8]
[1757073880722,0.6972,4419.9,4419.8,0.40722]
[1757073880930,0.5248,4420.1,4420.0,1.08861]
[1757073881129,0.229,4420.1,4420.0,1.21371]
[1757073881629,0.427,4420.1,4420.0,1.21371]
[1757073881832,0.7228,4420.1,4420.0,1.21371]
[1757073882334,0.427,4420.1,4420.0,1.21371]
[1757073882834,3.2078,4420.4,4420.3,1.08858]
[1757073883433,3.4058,4420.4,4420.3,1.08858]
[1757073883633,3.7016,4420.4,4420.3,1.08858]
[1757073884635,3.905,4420.4,4420.3,1.08858]
[1757073885134,3.905,4420.4,4420.3,0.60678]
[1757073885731,0.6972,4420.4,4420.3,1.08858]
[1757073887838,0.198,4420.8,4420.7,1.08854]
[1757073888532,0.6925,4420.8,4420.7,1.08854]
[1757073890236,0.4866,4420.8,4420.7,1.08854]
[1757073890436,3.4368,4421.0,4420.9,0.40713]
[1757073890634,3.7081,4421.0,4420.9,1.13113]
[1757073891135,0.5003,4421.4,4421.3,0.4153]
[1757073891340,0.2117,4421.4,4421.3,0.82239]
[1757073891736,3.2078,4421.5,4421.3,41.93109]
[1757073891941,3.2078,4421.5,4421.4,0.724]
[1757073893442,1.0502,4422.0,4421.9,0.211]
[1757073893639,1.0502,4422.0,4421.9,0.5197]
[1757073893839,1.0502,4422.0,4421.9,0.724]
[1757073894041,1.0502,4422.0,4421.9,0.211]
[1757073894943,0.7062,4421.9,4421.8,0.40703]
[1757073895547,0.7062,4421.9,4421.8,0.92673]
[1757073896146,0.7062,4421.9,4421.8,0.40703]
[1757073896536,0.7062,4421.9,4421.8,1.13103]
[1757073896947,0.7062,4421.9,4421.8,0.40703]
[1757073897248,0.2886,4421.8,4421.7,0.40705]
[1757073897546,0.7062,4421.8,4421.7,0.40705]
[1757073897735,0.7062,4421.8,4421.7,0.82235]
[1757073897940,0.5003,4421.8,4421.7,1.13105]
[1757073898248,0.2117,4421.8,4421.7,1.13105]
[1757073898449,0.7062,4421.8,4421.7,1.13105]
[1757073899148,0.7293,4422.0,4421.9,1.13103]
[1757073899346,0.9352,4422.0,4421.9,1.13103]
[1757073899549,1.0502,4422.0,4421.9,0.4153]
[1757073899748,1.0502,4422.0,4421.9,0.61803]
[1757073899942,1.0502,4422.0,4421.9,0.40703]
[1757073900248,1.0502,4422.0,4421.7,0.40705]
[1757073900449,0.7062,4421.8,4421.7,0.40705]
[1757073900749,0.7062,4421.8,4421.5,0.3087]
[1757073900948,0.7062,4421.8,4421.3,40.8]
[1757073900949,0.8212,4421.5,4421.4,0.40708]
[1757073901246,0.2117,4421.9,4421.8,1.13104]
[1757073901542,0.6466,4421.9,4421.6,0.3087]
[1757073901849,0.115,4422.0,4421.6,0.3087]
[1757073901850,3.2078,4422.2,4422.1,0.3087]
[1757073902046,3.914,4422.2,4422.1,1.13102]
[1757073902351,0.7062,4422.2,4422.1,1.13102]
[1757073902651,0.7062,4422.2,4422.1,0.92672]
[1757073902948,0.7062,4422.2,4422.1,1.13102]
[1757073903143,0.5003,4422.2,4422.1,1.13102]
[1757073903541,0.7062,4422.2,4422.1,1.13102]
[1757073904350,0.7062,4422.2,4422.1,41.93102]
[1757073904939,0.7062,4422.2,4422.1,41.72672]
[1757073905144,0.7062,4422.2,4422.1,41.41802]
[1757073905344,0.7062,4422.2,4422.1,41.72672]
[1757073905549,0.2886,4422.2,4422.1,41.72672]
[1757073905751,0.5003,4422.5,4422.4,1.13099]
[1757073906851,0.2117,4422.5,4422.4,1.13099]
[1757073907041,0.5003,4422.5,4422.4,1.13099]
[1757073908248,0.2117,4422.5,4422.4,1.13099]
[1757073908552,0.229,4422.6,4422.4,1.13099]
[1757073908751,0.229,4422.6,4422.5,0.433]
[1757073908953,0.229,4422.6,4422.5,0.8483]
[1757073909152,3.2078,4422.8,4422.6,0.71567]
[1757073909346,3.4195,4422.8,4422.7,0.724]
[1757073909653,3.914,4422.8,4422.7,0.4153]
[1757073909951,3.914,4422.8,4422.7,0.211]
[1757073911349,3.914,4422.8,4422.7,0.5197]
[1757073913053,3.914,4422.8,4422.7,1.13096]
[1757073914153,3.914,4422.8,4422.7,0.724]
[1757073914353,3.914,4422.8,4422.7,1.13096]
[1757073915754,3.914,4422.8,4422.7,0.724]
[1757073915955,0.4176,4422.2,4422.1,40.8]
[1757073916155,0.7062,4422.2,4422.1,40.8]
[1757073916549,0.115,4422.0,4421.6,0.71576]
[1757073916748,0.7062,4421.7,4421.6,0.211]
[1757073916947,0.2886,4421.6,4421.5,0.40707]
[1757073917454,0.2886,4421.6,4421.5,41.20707]
[1757073918050,0.2886,4421.6,4421.5,41.51577]
[1757073918661,0.173,4421.9,4421.8,0.3881]
[1757073918849,3.2078,4422.3,4421.8,0.3881]
[1757073918850,3.2078,4422.3,4422.0,0.40702]
[1757073919055,3.6354,4422.3,4422.2,0.3881]
[1757073919352,4.1445,4422.3,4422.2,0.6875]
[1757073919556,4.1445,4422.3,4422.2,0.3881]
[1757073919855,4.1445,4422.3,4422.2,0.6875]
[1757073920055,4.1445,4422.3,4421.9,0.40703]
[1757073920260,0.7077,4422.2,4422.1,0.6875]
[1757073920857,0.7077,4422.2,4422.1,1.09451]
[1757073922159,0.7077,4422.2,4422.1,0.6875]
[1757073922356,0.126,4421.5,4421.3,0.2994]
[1757073922560,0.5227,4421.5,4421.4,0.1948]
[1757073922861,0.5227,4421.5,4421.4,0.6875]
[1757073923052,0.8337,4421.5,4421.4,1.09458]
[1757073923460,0.7077,4421.5,4421.4,1.09458]
[1757073924162,0.7077,4421.5,4421.4,41.89458]
[1757073925359,0.1981,4422.2,4422.1,0.4927]
[1757073925563,0.7077,4422.2,4422.1,0.6875]
[1757073927264,0.7077,4422.2,4422.1,1.09452]
[1757073927961,0.7077,4422.2,4422.1,0.6875]
[1757073928156,0.126,4422.0,4421.9,3.2078]
[1757073928358,0.7077,4421.8,4421.4,3.2078]
[1757073928660,0.126,4422.0,4420.7,0.1948]
[1757073928661,0.3967,4420.8,4420.7,0.1948]
[1757073928865,0.7077,4420.8,4420.7,40.9948]
[1757073929066,0.7077,4420.8,4420.7,41.2942]
[1757073931071,0.7077,4420.4,4420.3,0.52889]
[1757073931566,0.7077,4420.4,4420.3,41.32889]
[1757073933868,0.7077,4420.4,4420.3,1.02309]
[1757073934062,0.7077,4420.4,4420.3,0.52889]
[1757073934561,3.5188,4421.2,4421.0,0.40712]
[1757073934762,3.4064,4421.2,4421.1,0.6875]
[1757073935068,3.9155,4421.2,4421.1,0.6875]
[1757073935268,3.9155,4421.2,4421.1,41.4875]
[1757073937573,3.2078,4421.2,4421.1,41.4875]
[1757073941673,3.5188,4421.2,4421.1,41.4875]
[1757073941970,3.2078,4421.2,4421.1,41.4875]
[1757073942574,3.5188,4421.2,4421.1,41.4875]
[1757073944168,3.2078,4421.2,4421.1,41.4875]
[1757073944369,3.5188,4421.2,4421.1,41.4875]
[1757073944765,3.2078,4421.2,4421.1,41.4875]
[1757073945571,3.5188,4421.2,4421.1,41.4875]
[1757073947380,3.2078,4421.2,4421.1,41.4875]
[1757073948080,3.4368,4421.2,4421.1,41.4875]
[1757073949184,3.7382,4421.2,4421.1,41.4875]
[1757073949775,0.5304,4421.2,4421.1,41.4875]
[1757073951381,0.229,4421.2,4421.1,41.4875]
[1757073952284,0.5304,4421.2,4421.1,41.4875]
[1757073952478,0.229,4421.2,4421.1,41.4875]
[1757073955182,0.3014,4421.6,4421.1,41.4875]
[1757073955384,0.2117,4421.3,4421.2,0.3165]
[1757073955687,0.3014,4421.4,4421.3,0.3165]
[1757073955991,0.229,4421.5,4421.4,0.3165]
[1757073956290,0.5131,4421.7,4421.6,0.7334]
[1757073956492,0.7421,4421.7,4421.6,0.7334]
[1757073956790,0.9437,4421.7,4421.6,0.7334]
[1757073959491,0.115,4421.0,4420.8,3.5243]
[1757073959687,0.9437,4420.9,4420.8,0.2092]
[1757073959888,0.9437,4420.9,4420.4,0.3165]
[1757073960088,0.7147,4420.9,4420.8,0.7334]
[1757073960390,0.9437,4420.9,4420.8,0.2092]
[1757073960586,0.9437,4420.9,4420.8,0.5257]
[1757073960788,0.9437,4420.9,4420.8,0.7334]
[1757073964490,0.503,4420.8,4420.7,0.2092]
[1757073964691,0.7147,4420.4,4420.3,0.73809]
[1757073964890,4.1515,4420.4,4420.3,0.52889]
[1757073966589,4.1515,4420.4,4420.3,0.73809]
[1757073967103,4.1515,4420.4,4420.3,0.52889]
[1757073969006,4.1515,4420.4,4420.3,0.73809]
[1757073969503,4.1515,4420.4,4420.3,0.52889]
[1757073972995,3.5092,4420.9,4420.4,0.3165]
[1757073973195,3.7209,4420.9,4420.8,0.7334]
[1757073973406,3.4368,4420.9,4420.8,0.7334]
[1757073973604,3.6485,4420.9,4420.8,0.7334]
[1757073973900,3.2078,4420.9,4420.8,4.7334]
[1757073974106,4.63351291,4421.5,4421.4,0.4169]
[1757073974307,3.9499,4421.5,4421.4,0.7334]
[1757073974605,3.4195,4421.5,4421.4,0.7334]
[1757073974806,4.1515,4421.5,4421.4,0.7334]
[1757073975310,3.4368,4421.5,4421.4,0.7334]
[1757073975807,3.9499,4421.5,4421.4,0.7334]
[1757073976007,4.1515,4421.5,4421.4,0.7334]
[1757073980810,4.2701,4421.5,4421.4,0.4169]
[1757073981211,4.2701,4421.5,4421.1,0.2864]
[1757073981403,3.9687,4421.5,4421.4,0.1967]
[1757073981803,0.4119,4420.8,4420.7,40.8]
[1757073982004,0.4119,4420.4,4420.3,0.72559]
[1757073982313,0.7025,4420.4,4420.3,0.52889]
[1757073982510,0.7025,4420.4,4420.3,41.32889]
[1757073983011,0.7025,4420.4,4420.3,41.61529]
[1757073988016,0.229,4420.5,4420.4,0.4015]
[1757073988219,0.229,4420.5,4420.4,0.6879]
[1757073988419,0.4345,4420.5,4420.4,0.6879]
[1757073988612,0.7251,4420.5,4420.4,0.6879]
[1757073988915,0.9315,4420.5,4420.4,0.6879]
[1757073989414,0.2906,4420.4,4420.3,41.32889]
[1757073989617,0.2906,4420.4,4420.3,41.61529]
[1757073990223,0.7025,4420.4,4420.3,1.01199]
[1757073990413,0.7025,4420.4,4420.3,1.21679]
[1757073990730,3.6197,4420.8,4420.7,0.6879]
[1757073990908,3.8487,4420.8,4420.7,0.6879]
[1757073991313,4.1393,4420.8,4420.7,0.6879]
[1757073991916,4.1393,4420.8,4420.7,0.4015]
[1757073992116,4.1393,4420.8,4420.7,0.1967]
[1757073992421,4.1393,4420.8,4420.4,0.2864]
[1757073992718,0.8211,4420.5,4420.4,0.1967]
[1757073992918,1.0501,4420.5,4420.4,0.1967]
[1757073993819,0.2906,4420.4,4420.3,0.52889]
[1757073994121,0.7025,4420.4,4420.3,0.72559]
[1757073994310,0.7025,4420.4,4420.3,1.21679]
[1757073996329,0.7025,4420.4,4420.3,0.52889]
[1757074001322,0.7025,4420.4,4420.3,1.21679]
[1757074002030,0.7025,4420.4,4420.3,0.72559]
[1757074002229,0.7025,4420.4,4420.3,0.52889]
[1757074003129,0.7025,4420.4,4420.3,0.72559]
[1757074003329,0.7025,4420.4,4420.3,1.21679]
[1757074010036,0.4345,4420.4,4420.3,1.21679]
[1757074010333,0.229,4420.4,4420.3,1.21679]
[1757074011128,3.2078,4420.8,4420.3,1.21679]
[1757074011333,3.4063,4420.8,4420.7,0.3848]
[1757074011633,3.8455,4420.8,4420.4,0.2893]
[1757074011830,0.4087,4420.5,4420.4,0.3848]
[1757074012032,0.9407,4420.5,4420.4,0.6741]
[1757074012833,1.0647,4420.5,4420.4,0.4821]
[1757074013136,0.7117,4420.4,4420.3,0.52889]
[1757074013334,0.229,4420.4,4420.3,1.20299]
[1757074013738,0.7305,4420.4,4420.3,1.20299]
[1757074013942,0.9407,4420.4,4420.3,1.20299]
[1757074016339,0.9407,4420.4,4419.1,0.2893]
[1757074016340,0.124,4420.0,4419.1,0.2893]
[1757074016535,0.7117,4419.2,4419.1,0.6741]
[1757074016739,0.7117,4419.2,4419.1,41.4741]
[1757074016940,0.094,4419.3,4419.2,0.6741]
[1757074017539,0.8057,4419.3,4419.2,0.6741]
[1757074017735,0.2925,4419.3,4419.2,0.6741]
[1757074017937,0.094,4419.3,4419.2,0.6741]
[1757074018745,0.5955,4419.3,4419.2,0.6741]
[1757074018944,0.2925,4419.3,4419.2,0.6741]
[1757074020040,0.094,4419.3,4419.2,0.6741]
[1757074020647,0.8057,4419.3,4419.2,0.6741]
[1757074021344,0.7117,4418.7,4418.6,2.82698167]
[1757074021639,4.1485,4418.7,4418.6,2.82698167]
[1757074021834,4.1485,4418.7,4418.6,3.30908167]
[1757074022035,4.1485,4418.7,4418.6,3.50108167]
[1757074023631,4.1485,4418.7,4418.6,0.6741]
[1757074027546,3.9195,4418.7,4418.6,0.6741]
[1757074027845,4.1485,4418.7,4418.6,0.6741]
[1757074030345,4.1485,4418.7,4418.0,40.9235]
[1757074030346,0.124,4418.5,4418.3,0.2893]
[1757074030646,0.9407,4418.4,4418.3,0.1928]
[1757074031146,0.9407,4418.4,4418.3,0.4821]
[1757074031543,0.9407,4418.4,4418.3,0.6741]
[1757074033550,0.303,4418.3,4418.0,40.8]
[1757074033848,0.7117,4418.1,4418.0,40.8]
[1757074034237,0.7117,4418.1,4418.0,41.0893]
[1757074034442,0.7117,4418.1,4418.0,0.4821]
[1757074034747,0.7117,4417.8,4417.7,0.6741]
[1757074034949,0.9407,4417.8,4417.7,41.4741]
[1757074035754,0.9407,4417.8,4417.7,41.2821]
[1757074035948,0.9407,4417.8,4417.7,0.1928]
[1757074036647,0.427,4417.5,4417.4,41.0893]
[1757074036951,1.0647,4417.5,4417.4,0.4821]
[1757074038353,1.0647,4417.5,4417.1,40.8]
[1757074038354,0.1988,4417.4,4417.3,0.406]
[1757074038547,0.7081,4417.4,4417.3,0.7231]
[1757074039750,0.7081,4416.8,4416.7,3.34018167]
[1757074039954,0.9371,4416.8,4416.7,3.02308167]
[1757074040453,0.9371,4416.8,4416.7,2.82698167]
[1757074041056,0.9371,4416.8,4416.7,3.55008167]
[1757074041248,0.9371,4416.8,4416.7,2.82698167]
[1757074041643,0.9371,4416.8,4416.7,3.02308167]
[1757074042356,0.9371,4416.8,4416.7,3.34018167]
[1757074042854,0.229,4417.3,4417.0,0.1181]
[1757074043155,3.2078,4417.4,4417.0,0.1181]
[1757074043156,3.2078,4417.4,4417.3,0.7231]
[1757074043355,3.2078,4417.4,4417.3,41.5231]
[1757074044154,0.229,4417.6,4417.5,0.5241]
[1757074044354,0.229,4417.6,4417.5,0.8412]
[1757074044652,4.42181291,4418.8,4418.2,0.7231]
[1757074044856,0.3054,4418.6,4418.3,0.3171]
[1757074045157,0.5093,4418.6,4418.5,0.7231]
[1757074045359,0.7081,4418.6,4418.5,0.7231]
[1757074045652,0.7081,4418.6,4418.5,0.5132]
[1757074045857,0.7081,4418.6,4418.5,0.1961]
[1757074046458,0.7081,4418.6,4418.5,0.5132]
[1757074046658,0.7081,4418.6,4418.5,0.7231]
[1757074049457,0.7081,4418.6,4418.1,0.3171]
[1757074049659,3.4066,4418.3,4418.2,0.5132]
[1757074049853,4.1449,4418.3,4418.2,0.5132]
[1757074051360,4.1449,4418.3,4417.8,0.3171]
[1757074051559,0.7081,4417.9,4417.8,0.5132]
[1757074051755,0.4027,4417.2,4417.1,0.7231]
[1757074051955,0.9371,4417.2,4417.1,0.7231]
[1757074052155,0.9371,4417.2,4417.1,41.5231]
[1757074052655,0.4329,4417.2,4417.1,41.5231]
[1757074054357,3.2078,4417.5,4417.2,0.3171]
[1757074054563,0.5267,4418.0,4417.9,0.406]
[1757074054761,1.0611,4418.0,4417.9,0.7231]
[1757074055251,0.7081,4418.0,4417.9,0.7231]
[1757074055454,0.4329,4418.0,4417.9,0.7231]
[1757074055655,0.7383,4418.0,4417.9,0.7231]
[1757074056863,0.9371,4418.0,4417.9,0.7231]
[1757074057563,0.7081,4418.0,4417.9,0.7231]
[1757074057764,0.9371,4418.0,4417.9,0.7231]
[1757074058165,1.0611,4418.0,4417.9,0.7231]
[1757074059664,0.9371,4418.0,4417.9,0.7231]
[1757074061263,0.229,4418.0,4417.9,0.7231]
[1757074061770,3.2078,4418.1,4418.0,0.8412]
[1757074061965,3.6407,4418.1,4418.0,0.8412]
[1757074062167,3.2078,4418.1,4418.0,0.8412]
[1757074062564,3.4368,4418.1,4418.0,0.8412]
[1757074062959,3.2078,4418.1,4418.0,0.8412]
[1757074063159,3.4368,4418.1,4418.0,0.8412]
[1757074063768,0.5093,4419.1,4419.0,0.7231]
[1757074063969,0.4329,4419.1,4419.0,0.8412]
[1757074064364,0.7383,4419.1,4419.0,41.6412]
[1757074064565,0.4329,4419.1,4419.0,41.6412]
[1757074065569,0.2039,4419.1,4419.0,41.6412]
[1757074065770,0.4329,4419.1,4419.0,41.6412]
[1757074066570,0.7383,4419.1,4419.0,41.6412]
[1757074067672,0.229,4419.1,4419.0,41.6412]
[1757074068273,3.2078,4419.2,4419.0,41.3241]
[1757074068469,3.2078,4419.2,4419.1,0.6868]
[1757074068673,3.4368,4419.2,4419.1,0.6868]
[1757074069673,3.2078,4419.2,4419.1,0.6868]
[1757074069871,3.4368,4419.2,4419.1,0.6868]
[1757074070270,3.647,4419.2,4419.1,0.6868]
[1757074070464,0.7298,4419.2,4419.1,0.6868]
[1757074070668,0.9343,4419.2,4419.1,0.6868]
[1757074072080,0.7053,4418.4,4418.3,0.198]
[1757074072575,0.7053,4418.4,4418.3,0.6868]
[1757074072780,0.5008,4418.4,4418.3,0.6868]
[1757074074382,3.9131,4419.2,4419.1,0.198]
[1757074074681,0.2102,4418.5,4418.4,0.9158]
[1757074074873,0.7053,4418.5,4418.4,0.9158]
[1757074075074,0.7053,4418.5,4418.4,41.7158]
[1757074075276,0.2906,4418.8,4418.4,41.83626]
[1757074075474,0.9343,4418.9,4418.4,40.8]
[1757074075678,0.4147,4418.5,4418.4,41.0869]
[1757074075876,0.7053,4418.5,4418.4,41.0869]
[1757074077883,0.6437,4418.9,4418.4,41.0869]
[1757074078084,0.229,4418.9,4418.4,41.0869]
[1757074078280,0.5008,4418.5,4418.4,41.0869]
[1757074078490,0.2102,4418.5,4418.4,41.0869]
[1757074078787,0.5008,4418.5,4418.4,41.0869]
[1757074079882,0.5008,4418.5,4418.1,3.4368]
[1757074079883,0.6229,4418.5,4418.1,3.2078]
[1757074080088,0.7053,4417.8,4417.7,0.4849]
[1757074080383,0.7053,4417.8,4417.7,0.198]
[1757074080587,0.7053,4417.8,4417.7,40.998]
[1757074081288,0.7053,4417.8,4417.7,41.2849]
[1757074081790,0.7053,4417.8,4417.7,0.198]
[1757074082191,0.7053,4417.8,4417.4,0.2869]
[1757074082391,0.7053,4417.8,4417.0,3.3298]
[1757074082392,0.7053,4417.1,4417.0,0.3999]
[1757074082690,0.3323,4417.0,4416.9,0.2019]
[1757074082986,0.2102,4417.0,4416.9,41.4868]
[1757074083182,0.5008,4417.0,4416.9,41.4868]
[1757074088694,0.5008,4417.0,4416.9,0.6868]
[1757074088892,0.7053,4417.0,4416.9,0.6868]
[1757074089897,0.2906,4417.4,4416.9,0.6868]
[1757074090098,0.229,4417.5,4417.1,0.2869]
[1757074090300,0.229,4417.5,4417.4,0.6868]
[1757074094302,3.2078,4417.6,4417.5,0.8088]
[1757074094502,3.2078,4418.1,4418.0,0.8088]
[1757074094999,3.2078,4418.1,4418.0,41.6088]
[1757074097508,3.418,4418.8,4418.7,0.3999]
[1757074097709,3.9376,4418.8,4418.7,0.6868]
[1757074098612,3.2078,4418.8,4418.7,0.6868]
[1757074100209,3.4085,4418.8,4418.7,0.6868]
[1757074101414,3.2078,4418.8,4418.7,0.6868]
[1757074101610,3.2078,4418.8,4418.7,41.4868]
[1757074103814,3.2078,4419.3,4418.7,40.8]
[1757074104105,3.2078,4419.3,4419.2,0.6933]
[1757074106214,3.4085,4419.3,4419.2,0.6933]
[1757074106713,3.6988,4419.3,4419.2,0.6933]
[1757074107214,3.9081,4419.3,4419.2,0.6933]
[1757074108012,0.41,4418.2,4418.1,0.6933]
[1757074108317,0.7003,4418.2,4418.1,0.6933]
[1757074108513,0.7003,4418.2,4418.1,41.4933]
[1757074110011,0.229,4418.8,4418.2,0.2958]
[1757074110211,0.2007,4418.7,4418.6,0.6933]
[1757074110415,0.229,4418.9,4418.7,0.2958]
[1757074110614,0.9293,4418.9,4418.8,0.6933]
[1757074110914,0.9293,4418.9,4418.8,0.2027]
[1757074111816,0.9293,4418.9,4418.8,0.6933]
[1757074115421,0.1253,4418.5,4418.4,0.229]
[1757074115715,0.6163,4418.5,4418.4,0.229]
[1757074116222,0.4156,4418.5,4418.4,0.229]
[1757074116428,0.4156,4418.5,4418.4,41.029]
[1757074116811,0.4156,4419.0,4418.7,0.40733]
[1757074117011,0.4156,4419.0,4418.9,3.2078]
[1757074118722,0.6163,4419.0,4418.9,3.2078]
[1757074118918,0.8256,4419.0,4418.9,3.2078]
[1757074119121,0.2903,4417.8,4417.7,0.2958]
[1757074119424,0.41,4417.2,4417.1,0.6933]
[1757074119621,3.2078,4417.9,4417.5,0.1157]
[1757074119821,3.4085,4417.9,4417.8,0.6933]
[1757074121025,3.6178,4417.9,4417.8,0.6933]
[1757074121224,3.9081,4417.9,4417.8,0.6933]
[1757074122225,3.6178,4417.9,4417.8,0.6933]
[1757074122527,3.9081,4417.9,4417.8,0.6933]
[1757074122822,3.4085,4417.9,4417.8,0.6933]
[1757074123324,3.9081,4417.9,4417.8,0.6933]
[1757074123926,0.7003,4417.9,4417.8,0.6933]
[1757074124225,0.2903,4418.6,4418.2,0.3975]
[1757074124529,3.9081,4418.9,4418.8,0.4985]
[1757074124724,4.1381,4418.9,4418.3,40.8]
[1757074124923,0.2007,4418.4,4418.3,40.8]
[1757074125124,0.2007,4418.4,4418.3,41.0958]
[1757074127428,0.491,4418.4,4418.3,41.0958]
[1757074127629,0.491,4418.4,4418.3,40.8]
[1757074128117,0.3081,4418.8,4418.3,41.0984]
[1757074128321,0.1966,4418.8,4418.7,0.6808]
[1757074128521,0.6993,4418.8,4418.7,0.6808]
[1757074128924,0.6993,4418.8,4418.7,0.1911]
[1757074129123,0.3912,4418.8,4418.4,0.2984]
[1757074129327,0.6993,4418.5,4418.4,0.6808]
[1757074130632,0.3912,4418.5,4418.4,0.6808]
[1757074131529,0.1966,4418.5,4418.4,0.6808]
[1757074132131,0.5047,4418.5,4418.4,0.6808]
[1757074132830,0.1966,4418.5,4418.4,0.6808]
[1757074136435,0.4266,4418.9,4418.8,0.6808]
[1757074136638,0.6993,4419.4,4419.3,0.3824]
[1757074136936,0.6993,4419.4,4419.3,0.6808]
[1757074138341,3.2078,4420.0,4419.9,0.3824]
[1757074138529,3.4044,4420.0,4419.9,0.6808]
[1757074138729,3.9071,4420.0,4419.9,0.4895]
[1757074138930,4.0222,4420.0,4419.9,40.8]
[1757074139231,8.47845,4420.0,4419.9,40.8]
[1757074139431,8.47845,4420.0,4419.2,0.2984]
[1757074139628,0.6993,4419.3,4419.2,0.4895]
[1757074140035,0.3081,4418.6,4418.1,0.2984]
[1757074140236,0.6993,4418.2,4418.1,0.6808]
[1757074140941,0.6993,4418.2,4418.1,0.1911]
[1757074141637,0.6993,4418.2,4418.1,0.4895]
[1757074142144,0.6993,4418.2,4418.1,0.6808]
[1757074142338,3.2078,4419.2,4418.5,0.1165]
[1757074142541,3.2078,4419.2,4419.0,0.4989]
[1757074142736,3.5159,4419.2,4419.1,0.2984]
[1757074142938,3.9071,4419.2,4419.1,0.6808]
[1757074143134,0.1966,4419.2,4419.1,0.6808]
[1757074143633,0.1966,4419.2,4419.1,41.4808]
[1757074144836,0.1966,4419.3,4419.2,0.6808]
[1757074145035,3.599,4420.2,4420.1,0.1911]
[1757074145238,3.599,4420.2,4419.5,0.1165]
[1757074145446,3.599,4420.2,4420.1,0.1911]
[1757074145742,3.9071,4420.2,4420.1,0.1911]
[1757074148852,3.9071,4420.2,4420.1,0.6808]
[1757074149040,3.599,4420.2,4420.1,0.6808]
[1757074150254,0.23,4420.3,4420.1,0.6808]
[1757074150546,0.23,4420.3,4420.2,0.2984]
[1757074150846,3.5159,4420.7,4420.2,0.3824]
[1757074151044,3.4044,4420.7,4420.6,0.6808]
[1757074151248,3.7125,4420.7,4420.6,0.6808]
[1757074151548,3.9071,4420.7,4420.6,0.6808]
[1757074152243,0.6993,4420.7,4420.6,0.6808]
[1757074152542,0.6993,4420.7,4420.6,0.4895]
[1757074152736,0.6993,4420.4,4420.3,40.8]
[1757074152941,0.9293,4420.4,4420.3,40.8]
[1757074153639,5.15553001,4420.4,4419.1,3.2078]
[1757074153942,0.3912,4419.1,4418.6,3.2078]
[1757074154149,0.3081,4418.7,4418.5,40.8]
[1757074154343,0.6993,4418.7,4418.6,0.1911]
[1757074154544,0.6993,4418.7,4418.6,0.4895]
[1757074154750,0.3081,4418.6,4418.5,40.8]
[1757074154942,0.3081,4418.6,4418.5,41.0984]
[1757074155346,0.3081,4418.6,4418.5,40.8]
[1757074155551,3.5159,4418.6,4418.5,40.8]
[1757074155747,0.1966,4418.2,4418.1,0.9108]
[1757074155954,0.6993,4418.2,4418.1,0.6808]
[1757074156146,3.4378,4418.6,4418.1,41.4808]
[1757074156450,0.5047,4418.5,4418.4,0.6808]
[1757074156645,0.6993,4418.5,4418.4,0.1911]
[1757074156846,0.8144,4418.5,4418.4,0.1911]
[1757074157346,0.8144,4418.5,4418.4,0.4895]
[1757074158251,0.6993,4418.5,4418.4,0.6808]
[1757074158440,0.3015,4418.9,4418.5,0.4181]
[1757074158642,0.7114,4418.9,4418.8,0.2012]
[1757074158843,0.3015,4418.8,4418.5,0.294]
[1757074159043,0.7114,4418.8,4418.7,0.6878]
[1757074159542,0.4099,4418.8,4418.4,0.23]
[1757074159739,0.4099,4418.3,4418.2,0.2012]
[1757074159941,0.7114,4418.3,4418.2,0.6878]
[1757074161254,0.4099,4418.3,4418.2,0.6878]
[1757074161755,0.2069,4418.3,4418.2,0.6878]
[1757074163056,3.6177,4418.6,4418.5,0.8119]
[1757074163255,3.9192,4418.6,4418.5,0.6878]
[1757074163955,3.9192,4418.6,4418.5,0.8119]
[1757074164154,3.9192,4418.6,4418.5,0.6878]
[1757074165054,3.2078,4418.6,4418.5,0.8119]
[1757074165450,3.4147,4418.6,4418.5,0.8119]
[1757074165962,0.23,4419.2,4419.1,0.3938]
[1757074166258,0.9414,4419.2,4419.1,0.6878]
[1757074169262,0.9414,4419.2,4419.1,0.2012]
[1757074172958,0.9414,4419.2,4419.1,0.4952]
[1757074173464,0.7114,4418.2,4418.1,0.2012]
[1757074173664,0.7114,4418.1,4418.0,0.6878]